[Event "Titled Tuesday Blitz November 07 Late 2023"]
[White "elmusmolamas"]
[Black "Kujawski, Adam"]
[BlackFideId "1100920"]
[WhiteElo "2491"]
[BlackElo "2372"]
[Result "0-1"]
[Round "7"]
[TimeControl "180+1"]
[Date "2023.11.07"]
[WhiteClock "0:00:00"]
[BlackClock "0:00:07"]
[Board "88"]

1. e4 {[%clk 0:03:00]}  e5 {[%clk 0:02:59]} 2. Nf3 {[%clk 0:02:58]}  Nc6 {[%clk 0:02:59]} 3. Bc4 {[%clk 0:02:57]}  Nf6 {[%clk 0:02:58]} 4. d3 {[%clk 0:02:54]}  d5 {[%clk 0:02:58]} 5. exd5 {[%clk 0:02:51]}  Nxd5 {[%clk 0:02:57]} 6. O-O {[%clk 0:02:48]}  Nb6 {[%clk 0:02:57]} 7. Bb3 {[%clk 0:02:48]}  Bg4 {[%clk 0:02:53]} 8. Re1 {[%clk 0:02:45]}  Qe7 {[%clk 0:02:53]} 9. Nbd2 {[%clk 0:02:37]}  O-O-O {[%clk 0:02:52]} 10. Nf1 {[%clk 0:02:38]}  Nd4 {[%clk 0:02:28]} 11. Ng3 {[%clk 0:02:08]}  Nxf3+ {[%clk 0:02:00]} 12. gxf3 {[%clk 0:02:09]}  Bh3 {[%clk 0:01:59]} 13. Qe2 {[%clk 0:02:02]}  Nd7 {[%clk 0:01:33]} 14. a4 {[%clk 0:01:49]}  h5 {[%clk 0:01:31]} 15. a5 {[%clk 0:01:38]}  a6 {[%clk 0:01:21]} 16. Bd5 {[%clk 0:01:19]}  h4 {[%clk 0:01:09]} 17. Nf1 {[%clk 0:00:56]}  c6 {[%clk 0:01:07]} 18. Bc4 {[%clk 0:00:52]}  Qf6 {[%clk 0:00:50]} 19. Kh1 {[%clk 0:00:49]}  Qg6 {[%clk 0:00:34]} 20. Ne3 {[%clk 0:00:49]}  Bc5 {[%clk 0:00:30]} 21. Rg1 {[%clk 0:00:49]}  Qf6 {[%clk 0:00:29]} 22. b4 {[%clk 0:00:46]}  Bd4 {[%clk 0:00:28]} 23. Rb1 {[%clk 0:00:43]}  Rh5 {[%clk 0:00:27]} 24. Ng4 {[%clk 0:00:40]}  Qe7 {[%clk 0:00:22]} 25. Be3 {[%clk 0:00:33]}  Qd6 {[%clk 0:00:16]} 26. Bxf7 {[%clk 0:00:23]}  Rf5 {[%clk 0:00:15]} 27. Bxd4 {[%clk 0:00:17]}  Rxf7 {[%clk 0:00:14]} 28. Bxe5 {[%clk 0:00:14]}  Nxe5 {[%clk 0:00:13]} 29. Nxe5 {[%clk 0:00:11]}  Re7 {[%clk 0:00:11]} 30. Rg5 {[%clk 0:00:08]}  Rde8 {[%clk 0:00:09]} 31. f4 {[%clk 0:00:06]}  Qf6 {[%clk 0:00:08]} 32. Qf3 {[%clk 0:00:04]}  Rxe5 {[%clk 0:00:08]} 33. Qxh3+ {[%clk 0:00:04]}  R5e6 {[%clk 0:00:08]} 34. Re5 {[%clk 0:00:02]}  Kb8 {[%clk 0:00:08]} 35. Rxe6 {[%clk 0:00:02]}  Rxe6 {[%clk 0:00:08]} 36. Qg4 {[%clk 0:00:02]}  Re7 {[%clk 0:00:08]} 37. Rg1 {[%clk 0:00:00]}  Ka7 {[%clk 0:00:07]} 0-1


[Site "https://www.chess.com"]

[Event "Titled Tuesday Blitz November 07 Late 2023"]
[White "TheAlienParty"]
[Black "Baches Garcia, Guillermo"]
[BlackFideId "2209764"]
[WhiteElo "2342"]
[BlackElo "2463"]
[Result "1-0"]
[Round "7"]
[TimeControl "180+1"]
[Date "2023.11.07"]
[WhiteClock "0:00:17"]
[BlackClock "0:00:00"]
[Board "90"]

1. Nf3 {[%clk 0:02:53]}  d5 {[%clk 0:02:59]} 2. g3 {[%clk 0:02:51]}  g6 {[%clk 0:02:54]} 3. d4 {[%clk 0:02:51]}  Nf6 {[%clk 0:02:53]} 4. Bg2 {[%clk 0:02:51]}  Bg7 {[%clk 0:02:53]} 5. O-O {[%clk 0:02:52]}  O-O {[%clk 0:02:53]} 6. b3 {[%clk 0:02:52]}  a5 {[%clk 0:02:52]} 7. Bb2 {[%clk 0:02:50]}  a4 {[%clk 0:02:52]} 8. c4 {[%clk 0:02:48]}  axb3 {[%clk 0:02:50]} 9. axb3 {[%clk 0:02:47]}  Rxa1 {[%clk 0:02:47]} 10. Bxa1 {[%clk 0:02:48]}  c6 {[%clk 0:02:42]} 11. Nc3 {[%clk 0:02:47]}  Bf5 {[%clk 0:02:41]} 12. c5 {[%clk 0:02:45]}  Ne4 {[%clk 0:02:37]} 13. Na4 {[%clk 0:02:45]}  Nd7 {[%clk 0:02:32]} 14. Nh4 {[%clk 0:02:43]}  Be6 {[%clk 0:02:31]} 15. Kh1 {[%clk 0:02:32]}  Qa8 {[%clk 0:02:16]} 16. f3 {[%clk 0:02:29]}  Nef6 {[%clk 0:02:16]} 17. Qd2 {[%clk 0:02:07]}  Qa6 {[%clk 0:02:11]} 18. Bc3 {[%clk 0:02:03]}  Qb5 {[%clk 0:02:08]} 19. Rb1 {[%clk 0:01:53]}  b6 {[%clk 0:01:54]} 20. cxb6 {[%clk 0:01:51]}  Nxb6 {[%clk 0:01:54]} 21. Nc5 {[%clk 0:01:50]}  Bc8 {[%clk 0:01:54]} 22. Bf1 {[%clk 0:01:47]}  Nbd7 {[%clk 0:01:53]} 23. e4 {[%clk 0:01:45]}  Qb6 {[%clk 0:01:51]} 24. Na4 {[%clk 0:01:40]}  Qa7 {[%clk 0:01:46]} 25. e5 {[%clk 0:01:39]}  Ne8 {[%clk 0:01:43]} 26. Ra1 {[%clk 0:01:38]}  Qb8 {[%clk 0:01:42]} 27. Bb4 {[%clk 0:01:35]}  g5 {[%clk 0:01:25]} 28. Nf5 {[%clk 0:01:30]}  Nxe5 {[%clk 0:01:18]} 29. Nxe7+ {[%clk 0:01:29]}  Kh8 {[%clk 0:01:17]} 30. dxe5 {[%clk 0:01:29]}  Bxe5 {[%clk 0:01:17]} 31. Nxc8 {[%clk 0:01:20]}  Bxa1 {[%clk 0:01:12]} 32. Bxf8 {[%clk 0:01:18]}  Qxb3 {[%clk 0:01:08]} 33. Nab6 {[%clk 0:01:06]}  Qxf3+ {[%clk 0:01:02]} 34. Bg2 {[%clk 0:01:04]}  Qf5 {[%clk 0:01:02]} 35. Qd1 {[%clk 0:00:43]}  Bd4 {[%clk 0:00:59]} 36. Qxd4+ {[%clk 0:00:41]}  Nf6 {[%clk 0:00:59]} 37. h3 {[%clk 0:00:33]}  h5 {[%clk 0:00:57]} 38. Kh2 {[%clk 0:00:32]}  Kh7 {[%clk 0:00:56]} 39. Bd6 {[%clk 0:00:31]}  Ne4 {[%clk 0:00:56]} 40. Be5 {[%clk 0:00:29]}  h4 {[%clk 0:00:51]} 41. g4 {[%clk 0:00:27]}  Qe6 {[%clk 0:00:51]} 42. Bxe4+ {[%clk 0:00:26]}  dxe4 {[%clk 0:00:51]} 43. Qxe4+ {[%clk 0:00:26]}  Kg8 {[%clk 0:00:52]} 44. Nd6 {[%clk 0:00:20]}  Qa2+ {[%clk 0:00:51]} 45. Qg2 {[%clk 0:00:19]}  Qa5 {[%clk 0:00:49]} 46. Nbc4 {[%clk 0:00:19]}  Qd5 {[%clk 0:00:49]} 47. Qxd5 {[%clk 0:00:18]}  cxd5 {[%clk 0:00:50]} 48. Nb6 {[%clk 0:00:17]}  f6 {[%clk 0:00:00]} 49. Bxf6 {[%clk 0:00:17]} 1-0


[Site "https://www.chess.com"]

[Event "Titled Tuesday Blitz November 07 Late 2023"]
[White "Ramadoss, Ashokkumar"]
[Black "Halak, Miklos"]
[WhiteFideId "5040990"]
[BlackFideId "726400"]
[WhiteElo "2333"]
[BlackElo "2443"]
[Result "1-0"]
[Round "7"]
[TimeControl "180+1"]
[Date "2023.11.07"]
[WhiteClock "0:00:16"]
[BlackClock "0:00:03"]
[Board "92"]

1. Nf3 {[%clk 0:03:00]}  d5 {[%clk 0:02:59]} 2. c4 {[%clk 0:03:01]}  e6 {[%clk 0:02:59]} 3. Qc2 {[%clk 0:03:01]}  d4 {[%clk 0:02:58]} 4. d3 {[%clk 0:03:00]}  Nc6 {[%clk 0:02:58]} 5. g3 {[%clk 0:03:00]}  Nf6 {[%clk 0:02:58]} 6. Bg2 {[%clk 0:03:00]}  Bc5 {[%clk 0:02:57]} 7. O-O {[%clk 0:03:00]}  a5 {[%clk 0:02:56]} 8. b3 {[%clk 0:02:56]}  O-O {[%clk 0:02:52]} 9. a3 {[%clk 0:02:56]}  e5 {[%clk 0:02:49]} 10. Nbd2 {[%clk 0:02:55]}  Re8 {[%clk 0:02:47]} 11. Ng5 {[%clk 0:02:55]}  Bg4 {[%clk 0:02:37]} 12. Re1 {[%clk 0:02:52]}  h6 {[%clk 0:02:33]} 13. Nge4 {[%clk 0:02:52]}  Nxe4 {[%clk 0:02:29]} 14. Bxe4 {[%clk 0:02:43]}  Qd6 {[%clk 0:02:18]} 15. Bd5 {[%clk 0:02:34]}  Qg6 {[%clk 0:02:01]} 16. Rb1 {[%clk 0:02:26]}  Qh5 {[%clk 0:01:51]} 17. Ne4 {[%clk 0:01:04]}  Bf8 {[%clk 0:01:45]} 18. c5 {[%clk 0:01:01]}  Rad8 {[%clk 0:01:42]} 19. Bc4 {[%clk 0:00:53]}  Kh8 {[%clk 0:01:34]} 20. f3 {[%clk 0:00:51]}  Bc8 {[%clk 0:01:27]} 21. b4 {[%clk 0:00:49]}  axb4 {[%clk 0:01:26]} 22. axb4 {[%clk 0:00:50]}  f5 {[%clk 0:01:26]} 23. Nf2 {[%clk 0:00:50]}  Ne7 {[%clk 0:01:15]} 24. Qb3 {[%clk 0:00:44]}  Ng6 {[%clk 0:00:57]} 25. Ra1 {[%clk 0:00:31]}  f4 {[%clk 0:00:50]} 26. g4 {[%clk 0:00:30]}  Qg5 {[%clk 0:00:39]} 27. Ra8 {[%clk 0:00:24]}  Bxg4 {[%clk 0:00:26]} 28. fxg4 {[%clk 0:00:25]}  Rxa8 {[%clk 0:00:26]} 29. Bd5 {[%clk 0:00:22]}  c6 {[%clk 0:00:25]} 30. Bf3 {[%clk 0:00:23]}  Nh4 {[%clk 0:00:24]} 31. Ne4 {[%clk 0:00:21]}  Qg6 {[%clk 0:00:23]} 32. Kh1 {[%clk 0:00:19]}  Ra1 {[%clk 0:00:20]} 33. Bd2 {[%clk 0:00:18]}  Rxe1+ {[%clk 0:00:19]} 34. Bxe1 {[%clk 0:00:19]}  Nxf3 {[%clk 0:00:19]} 35. exf3 {[%clk 0:00:20]}  Qe6 {[%clk 0:00:16]} 36. Qa4 {[%clk 0:00:18]}  h5 {[%clk 0:00:13]} 37. h3 {[%clk 0:00:17]}  hxg4 {[%clk 0:00:13]} 38. hxg4 {[%clk 0:00:18]}  Kg8 {[%clk 0:00:12]} 39. Kg2 {[%clk 0:00:18]}  Kf7 {[%clk 0:00:13]} 40. Ng5+ {[%clk 0:00:18]}  Kg6 {[%clk 0:00:13]} 41. Nxe6 {[%clk 0:00:18]}  Rxe6 {[%clk 0:00:14]} 42. Qb3 {[%clk 0:00:19]}  Kf6 {[%clk 0:00:14]} 43. Bd2 {[%clk 0:00:18]}  g5 {[%clk 0:00:14]} 44. Qc4 {[%clk 0:00:18]}  Re7 {[%clk 0:00:13]} 45. b5 {[%clk 0:00:18]}  cxb5 {[%clk 0:00:12]} 46. Qxb5 {[%clk 0:00:19]}  Rc7 {[%clk 0:00:11]} 47. Bb4 {[%clk 0:00:18]}  Ke6 {[%clk 0:00:07]} 48. Qb6+ {[%clk 0:00:18]}  Kd7 {[%clk 0:00:07]} 49. Qf6 {[%clk 0:00:16]}  Be7 {[%clk 0:00:07]} 50. Qxe5 {[%clk 0:00:16]}  Rc6 {[%clk 0:00:07]} 51. Qd5+ {[%clk 0:00:16]}  Kc7 {[%clk 0:00:03]} 52. Qxd4 {[%clk 0:00:16]} 1-0


[Site "https://www.chess.com"]

[Event "Titled Tuesday Blitz November 07 Late 2023"]
[White "Bazzano, Sebastian"]
[Black "Marchesich, Giovanni"]
[WhiteFideId "104566"]
[BlackFideId "2824790"]
[WhiteElo "2256"]
[BlackElo "2425"]
[Result "1-0"]
[Round "7"]
[TimeControl "180+1"]
[Date "2023.11.07"]
[WhiteClock "0:00:34"]
[BlackClock "0:01:53"]
[Board "93"]

1. d4 {[%clk 0:03:00]}  Nf6 {[%clk 0:02:59]} 2. Bf4 {[%clk 0:02:57]}  d6 {[%clk 0:02:58]} 3. Nc3 {[%clk 0:02:57]}  Bf5 {[%clk 0:02:58]} 4. f3 {[%clk 0:02:56]}  Bg6 {[%clk 0:02:55]} 5. e4 {[%clk 0:02:56]}  Nbd7 {[%clk 0:02:55]} 6. Qd2 {[%clk 0:02:55]}  e5 {[%clk 0:02:55]} 7. Be3 {[%clk 0:02:55]}  exd4 {[%clk 0:02:53]} 8. Bxd4 {[%clk 0:02:54]}  Be7 {[%clk 0:02:53]} 9. Bc4 {[%clk 0:02:52]}  O-O {[%clk 0:02:50]} 10. Nge2 {[%clk 0:02:51]}  Ne5 {[%clk 0:02:50]} 11. Bb3 {[%clk 0:02:45]}  Nc6 {[%clk 0:02:46]} 12. Be3 {[%clk 0:02:42]}  Nd7 {[%clk 0:02:46]} 13. Nd4 {[%clk 0:02:40]}  Nc5 {[%clk 0:02:45]} 14. O-O {[%clk 0:02:32]}  Nxb3 {[%clk 0:02:40]} 15. axb3 {[%clk 0:02:33]}  Bf6 {[%clk 0:02:36]} 16. Nd5 {[%clk 0:02:16]}  Bxd4 {[%clk 0:02:32]} 17. Bxd4 {[%clk 0:02:15]}  Nxd4 {[%clk 0:02:32]} 18. Qxd4 {[%clk 0:02:16]}  f5 {[%clk 0:02:29]} 19. exf5 {[%clk 0:01:40]}  Rxf5 {[%clk 0:02:29]} 20. c4 {[%clk 0:01:38]}  Re5 {[%clk 0:02:24]} 21. Rfe1 {[%clk 0:01:26]}  Qg5 {[%clk 0:02:24]} 22. f4 {[%clk 0:01:15]}  Rxe1+ {[%clk 0:02:21]} 23. Rxe1 {[%clk 0:01:16]}  Qh4 {[%clk 0:02:22]} 24. g3 {[%clk 0:01:15]}  Qg4 {[%clk 0:02:17]} 25. Nxc7 {[%clk 0:00:55]}  Rd8 {[%clk 0:02:14]} 26. Re7 {[%clk 0:00:54]}  Bf5 {[%clk 0:02:08]} 27. Nd5 {[%clk 0:00:36]}  Kh8 {[%clk 0:01:53]} 28. Ne3 {[%clk 0:00:34]} 1-0


[Site "https://www.chess.com"]

[Event "Titled Tuesday Blitz November 07 Late 2023"]
[White "Quirke, Jeffrey"]
[Black "Mekhitarian, Krikor Sevag"]
[WhiteFideId "2013029"]
[BlackFideId "2107660"]
[WhiteElo "2260"]
[BlackElo "2731"]
[Result "0-1"]
[Round "7"]
[TimeControl "180+1"]
[Date "2023.11.07"]
[WhiteClock "0:00:05"]
[BlackClock "0:00:34"]
[Board "94"]

1. e4 {[%clk 0:03:00]}  e6 {[%clk 0:02:59]} 2. Nf3 {[%clk 0:02:57]}  d5 {[%clk 0:03:00]} 3. e5 {[%clk 0:02:57]}  c5 {[%clk 0:03:00]} 4. b4 {[%clk 0:02:57]}  b6 {[%clk 0:02:59]} 5. bxc5 {[%clk 0:02:51]}  bxc5 {[%clk 0:03:00]} 6. c3 {[%clk 0:02:51]}  c4 {[%clk 0:02:59]} 7. d4 {[%clk 0:02:47]}  cxd3 {[%clk 0:03:00]} 8. Bxd3 {[%clk 0:02:47]}  Nc6 {[%clk 0:03:01]} 9. O-O {[%clk 0:02:46]}  Nge7 {[%clk 0:03:00]} 10. Nbd2 {[%clk 0:02:43]}  Ng6 {[%clk 0:03:00]} 11. Re1 {[%clk 0:02:43]}  Be7 {[%clk 0:02:57]} 12. Nb3 {[%clk 0:02:42]}  Qc7 {[%clk 0:02:57]} 13. Qe2 {[%clk 0:02:33]}  O-O {[%clk 0:02:46]} 14. Nbd4 {[%clk 0:02:24]}  Rd8 {[%clk 0:02:46]} 15. Rb1 {[%clk 0:02:11]}  Na5 {[%clk 0:02:40]} 16. Nb5 {[%clk 0:02:02]}  Qd7 {[%clk 0:02:38]} 17. Bg5 {[%clk 0:02:00]}  Ba6 {[%clk 0:02:34]} 18. Bxe7 {[%clk 0:01:57]}  Qxe7 {[%clk 0:02:32]} 19. a4 {[%clk 0:01:49]}  Nf4 {[%clk 0:02:13]} 20. Qe3 {[%clk 0:01:43]}  Nxd3 {[%clk 0:02:12]} 21. Qxd3 {[%clk 0:01:43]}  Nc4 {[%clk 0:02:08]} 22. Nfd4 {[%clk 0:01:33]}  Rac8 {[%clk 0:02:04]} 23. f4 {[%clk 0:01:17]}  g6 {[%clk 0:01:59]} 24. Rbd1 {[%clk 0:00:50]}  Qc5 {[%clk 0:01:58]} 25. Qg3 {[%clk 0:00:46]}  Bxb5 {[%clk 0:01:55]} 26. axb5 {[%clk 0:00:45]}  Nb2 {[%clk 0:01:52]} 27. Rc1 {[%clk 0:00:41]}  Na4 {[%clk 0:01:35]} 28. Kh1 {[%clk 0:00:36]}  Nxc3 {[%clk 0:01:21]} 29. Nc6 {[%clk 0:00:35]}  Rxc6 {[%clk 0:01:21]} 30. bxc6 {[%clk 0:00:35]}  d4 {[%clk 0:01:22]} 31. Qd3 {[%clk 0:00:26]}  Qxc6 {[%clk 0:01:19]} 32. Rc2 {[%clk 0:00:24]}  Rd5 {[%clk 0:01:17]} 33. Rec1 {[%clk 0:00:23]}  Kg7 {[%clk 0:01:17]} 34. Ra1 {[%clk 0:00:18]}  a5 {[%clk 0:01:17]} 35. h3 {[%clk 0:00:16]}  h5 {[%clk 0:01:16]} 36. Kh2 {[%clk 0:00:16]}  a4 {[%clk 0:01:12]} 37. Rb2 {[%clk 0:00:14]}  Rc5 {[%clk 0:00:44]} 38. Rb4 {[%clk 0:00:14]}  Nd5 {[%clk 0:00:35]} 39. Qe4 {[%clk 0:00:05]}  Nxb4 {[%clk 0:00:34]} 0-1


[Site "https://www.chess.com"]

[Event "Titled Tuesday Blitz November 07 Late 2023"]
[White "ExchangeAB"]
[Black "Ardila, Oscar Humberto"]
[BlackFideId "4404742"]
[WhiteElo "2435"]
[BlackElo "2320"]
[Result "1-0"]
[Round "7"]
[TimeControl "180+1"]
[Date "2023.11.07"]
[WhiteClock "0:01:12"]
[BlackClock "0:00:00"]
[Board "97"]

1. Nf3 {[%clk 0:03:00]}  Nf6 {[%clk 0:02:59]} 2. e3 {[%clk 0:03:01]}  g6 {[%clk 0:02:58]} 3. b3 {[%clk 0:03:01]}  Bg7 {[%clk 0:02:58]} 4. Bb2 {[%clk 0:03:02]}  O-O {[%clk 0:02:58]} 5. Be2 {[%clk 0:03:03]}  d6 {[%clk 0:02:58]} 6. d4 {[%clk 0:03:02]}  Nbd7 {[%clk 0:02:58]} 7. O-O {[%clk 0:03:02]}  c6 {[%clk 0:02:57]} 8. c4 {[%clk 0:03:02]}  Qc7 {[%clk 0:02:57]} 9. Nc3 {[%clk 0:03:01]}  e5 {[%clk 0:02:57]} 10. Qc2 {[%clk 0:03:01]}  Re8 {[%clk 0:02:55]} 11. Rfd1 {[%clk 0:03:01]}  Nf8 {[%clk 0:02:52]} 12. dxe5 {[%clk 0:02:59]}  dxe5 {[%clk 0:02:53]} 13. Ba3 {[%clk 0:02:47]}  Bf5 {[%clk 0:02:50]} 14. e4 {[%clk 0:02:45]}  Bg4 {[%clk 0:02:38]} 15. Bd6 {[%clk 0:02:44]}  Qa5 {[%clk 0:02:36]} 16. b4 {[%clk 0:02:40]}  Qb6 {[%clk 0:02:35]} 17. Na4 {[%clk 0:02:34]}  Qa6 {[%clk 0:01:55]} 18. c5 {[%clk 0:02:31]}  b5 {[%clk 0:01:55]} 19. cxb6 {[%clk 0:02:30]}  Qb7 {[%clk 0:01:55]} 20. bxa7 {[%clk 0:02:23]}  Qxa7 {[%clk 0:01:55]} 21. Nc5 {[%clk 0:02:21]}  Ne6 {[%clk 0:01:49]} 22. Nxe6 {[%clk 0:02:16]}  Rxe6 {[%clk 0:01:48]} 23. Bc5 {[%clk 0:02:15]}  Qb7 {[%clk 0:01:36]} 24. Ng5 {[%clk 0:02:07]}  Ree8 {[%clk 0:01:31]} 25. f3 {[%clk 0:01:53]}  Be6 {[%clk 0:01:28]} 26. Nxe6 {[%clk 0:01:52]}  Rxe6 {[%clk 0:01:28]} 27. Bc4 {[%clk 0:01:52]}  Ree8 {[%clk 0:01:29]} 28. a4 {[%clk 0:01:52]}  Bf8 {[%clk 0:01:25]} 29. Bf1 {[%clk 0:01:48]}  Reb8 {[%clk 0:01:15]} 30. a5 {[%clk 0:01:43]}  Bxc5+ {[%clk 0:01:14]} 31. Qxc5 {[%clk 0:01:44]}  Qxb4 {[%clk 0:01:12]} 32. Qxc6 {[%clk 0:01:42]}  Nh5 {[%clk 0:01:06]} 33. a6 {[%clk 0:01:38]}  Qb3 {[%clk 0:00:23]} 34. Qc5 {[%clk 0:01:25]}  Rb5 {[%clk 0:00:19]} 35. Bxb5 {[%clk 0:01:21]}  Nf4 {[%clk 0:00:15]} 36. Bf1 {[%clk 0:01:20]}  Ne6 {[%clk 0:00:13]} 37. Qf2 {[%clk 0:01:19]}  Ra7 {[%clk 0:00:12]} 38. Qxa7 {[%clk 0:01:18]}  Kg7 {[%clk 0:00:12]} 39. Qf2 {[%clk 0:01:18]}  h5 {[%clk 0:00:12]} 40. a7 {[%clk 0:01:18]}  h4 {[%clk 0:00:12]} 41. a8=Q {[%clk 0:01:19]}  h3 {[%clk 0:00:12]} 42. g3 {[%clk 0:01:19]}  Qc3 {[%clk 0:00:10]} 43. Qa3 {[%clk 0:01:17]}  Qc7 {[%clk 0:00:10]} 44. Qb3 {[%clk 0:01:16]}  Qe7 {[%clk 0:00:09]} 45. Qxe6 {[%clk 0:01:16]}  Qxe6 {[%clk 0:00:09]} 46. Bxh3 {[%clk 0:01:16]}  Qxh3 {[%clk 0:00:09]} 47. Rdb1 {[%clk 0:01:15]}  g5 {[%clk 0:00:08]} 48. g4 {[%clk 0:01:14]}  Qh6 {[%clk 0:00:08]} 49. Rb7 {[%clk 0:01:13]}  Qd6 {[%clk 0:00:08]} 50. Raa7 {[%clk 0:01:12]}  Qd1+ {[%clk 0:00:07]} 51. Kg2 {[%clk 0:01:13]}  Qc1 {[%clk 0:00:00]} 52. Rxf7+ {[%clk 0:01:12]} 1-0


[Site "https://www.chess.com"]

[Event "Titled Tuesday Blitz November 07 Late 2023"]
[White "Bogaudinov, Rushan"]
[Black "Su, Dion"]
[WhiteFideId "4129288"]
[BlackFideId "2029731"]
[WhiteElo "2310"]
[BlackElo "2417"]
[Result "1/2-1/2"]
[Round "7"]
[TimeControl "180+1"]
[Date "2023.11.07"]
[WhiteClock "0:00:08"]
[BlackClock "0:00:12"]
[Board "100"]

1. d4 {[%clk 0:02:27]}  Nf6 {[%clk 0:02:56]} 2. Bf4 {[%clk 0:02:26]}  e6 {[%clk 0:02:56]} 3. Nf3 {[%clk 0:02:25]}  d5 {[%clk 0:02:56]} 4. e3 {[%clk 0:02:24]}  Bd6 {[%clk 0:02:56]} 5. Bxd6 {[%clk 0:02:19]}  cxd6 {[%clk 0:02:55]} 6. c3 {[%clk 0:02:18]}  O-O {[%clk 0:02:55]} 7. Nbd2 {[%clk 0:02:17]}  Nc6 {[%clk 0:02:55]} 8. Be2 {[%clk 0:02:17]}  e5 {[%clk 0:02:55]} 9. O-O {[%clk 0:02:16]}  e4 {[%clk 0:02:34]} 10. Ne1 {[%clk 0:02:13]}  Nd7 {[%clk 0:02:34]} 11. c4 {[%clk 0:02:02]}  dxc4 {[%clk 0:02:31]} 12. Nxe4 {[%clk 0:02:02]}  d5 {[%clk 0:02:30]} 13. Nc3 {[%clk 0:02:02]}  Nb6 {[%clk 0:02:27]} 14. Bf3 {[%clk 0:01:49]}  f5 {[%clk 0:02:26]} 15. Nc2 {[%clk 0:01:38]}  Be6 {[%clk 0:02:24]} 16. b3 {[%clk 0:01:35]}  Rc8 {[%clk 0:02:17]} 17. Qd2 {[%clk 0:01:27]}  g5 {[%clk 0:02:16]} 18. Be2 {[%clk 0:01:20]}  f4 {[%clk 0:01:56]} 19. exf4 {[%clk 0:01:18]}  Rxf4 {[%clk 0:01:52]} 20. Rfe1 {[%clk 0:01:07]}  Qf6 {[%clk 0:01:51]} 21. bxc4 {[%clk 0:00:58]}  Nxd4 {[%clk 0:01:37]} 22. Nxd5 {[%clk 0:00:46]}  Nxd5 {[%clk 0:01:28]} 23. Nxd4 {[%clk 0:00:37]}  Rxd4 {[%clk 0:01:28]} 24. Qa5 {[%clk 0:00:33]}  Nf4 {[%clk 0:01:24]} 25. Bf3 {[%clk 0:00:33]}  Nh3+ {[%clk 0:01:02]} 26. gxh3 {[%clk 0:00:31]}  Qxf3 {[%clk 0:01:01]} 27. Rxe6 {[%clk 0:00:24]}  Qf4 {[%clk 0:00:24]} 28. Rae1 {[%clk 0:00:21]}  Rf8 {[%clk 0:00:24]} 29. R1e2 {[%clk 0:00:18]}  Rd1+ {[%clk 0:00:21]} 30. Re1 {[%clk 0:00:15]}  Qxf2+ {[%clk 0:00:21]} 31. Kh1 {[%clk 0:00:15]}  Qf3+ {[%clk 0:00:18]} 32. Kg1 {[%clk 0:00:15]}  Rxe1+ {[%clk 0:00:15]} 33. Qxe1 {[%clk 0:00:15]}  Qxh3 {[%clk 0:00:13]} 34. Re5 {[%clk 0:00:12]}  Qg4+ {[%clk 0:00:13]} 35. Qg3 {[%clk 0:00:10]}  Qxg3+ {[%clk 0:00:11]} 36. hxg3 {[%clk 0:00:11]}  h6 {[%clk 0:00:11]} 37. Re7 {[%clk 0:00:11]}  Rf7 {[%clk 0:00:11]} 38. Re6 {[%clk 0:00:11]}  Kg7 {[%clk 0:00:11]} 39. Kg2 {[%clk 0:00:11]}  Rc7 {[%clk 0:00:11]} 40. Re4 {[%clk 0:00:10]}  Kg6 {[%clk 0:00:11]} 41. Kf3 {[%clk 0:00:11]}  Kf5 {[%clk 0:00:12]} 42. g4+ {[%clk 0:00:11]}  Kg6 {[%clk 0:00:12]} 43. Ke3 {[%clk 0:00:11]}  Kf6 {[%clk 0:00:12]} 44. Kd4 {[%clk 0:00:11]}  Re7 {[%clk 0:00:11]} 45. Rxe7 {[%clk 0:00:09]}  Kxe7 {[%clk 0:00:12]} 46. Ke5 {[%clk 0:00:09]}  a6 {[%clk 0:00:08]} 47. c5 {[%clk 0:00:08]}  Kd7 {[%clk 0:00:07]} 48. Kf5 {[%clk 0:00:08]}  Kc6 {[%clk 0:00:07]} 49. Kg6 {[%clk 0:00:08]}  Kxc5 {[%clk 0:00:08]} 50. Kxh6 {[%clk 0:00:09]}  b5 {[%clk 0:00:08]} 51. Kxg5 {[%clk 0:00:09]}  a5 {[%clk 0:00:09]} 52. Kf6 {[%clk 0:00:09]}  b4 {[%clk 0:00:10]} 53. g5 {[%clk 0:00:10]}  a4 {[%clk 0:00:11]} 54. g6 {[%clk 0:00:10]}  b3 {[%clk 0:00:12]} 55. axb3 {[%clk 0:00:11]}  a3 {[%clk 0:00:12]} 56. g7 {[%clk 0:00:12]}  a2 {[%clk 0:00:12]} 57. g8=Q {[%clk 0:00:12]}  a1=Q+ {[%clk 0:00:13]} 58. Ke6 {[%clk 0:00:11]}  Qe1+ {[%clk 0:00:12]} 59. Kf7 {[%clk 0:00:11]}  Qf1+ {[%clk 0:00:11]} 60. Ke7 {[%clk 0:00:11]}  Qe2+ {[%clk 0:00:11]} 61. Kd7 {[%clk 0:00:10]}  Qd3+ {[%clk 0:00:11]} 62. Kc7 {[%clk 0:00:09]}  Kb4 {[%clk 0:00:11]} 63. Qc4+ {[%clk 0:00:07]}  Qxc4+ {[%clk 0:00:11]} 64. bxc4 {[%clk 0:00:08]}  Kxc4 {[%clk 0:00:12]} 1/2-1/2


[Site "https://www.chess.com"]

[Event "Titled Tuesday Blitz November 07 Late 2023"]
[White "Novikova, Galina"]
[Black "Osmonbekov, Talaibek"]
[WhiteFideId "4157095"]
[BlackFideId "2017253"]
[WhiteElo "2415"]
[BlackElo "2300"]
[Result "1-0"]
[Round "7"]
[TimeControl "180+1"]
[Date "2023.11.07"]
[WhiteClock "0:00:54"]
[BlackClock "0:00:04"]
[Board "101"]

1. e4 {[%clk 0:03:00]}  c5 {[%clk 0:03:00]} 2. Nf3 {[%clk 0:03:00]}  d6 {[%clk 0:03:01]} 3. d4 {[%clk 0:03:01]}  cxd4 {[%clk 0:03:02]} 4. Nxd4 {[%clk 0:03:02]}  Nf6 {[%clk 0:03:02]} 5. Nc3 {[%clk 0:03:02]}  g6 {[%clk 0:03:03]} 6. Be3 {[%clk 0:03:02]}  Bg7 {[%clk 0:03:04]} 7. f3 {[%clk 0:03:02]}  O-O {[%clk 0:03:04]} 8. Qd2 {[%clk 0:03:03]}  Nc6 {[%clk 0:03:04]} 9. g4 {[%clk 0:03:04]}  h5 {[%clk 0:03:03]} 10. gxh5 {[%clk 0:03:04]}  Nxh5 {[%clk 0:03:03]} 11. O-O-O {[%clk 0:03:04]}  Qa5 {[%clk 0:03:02]} 12. Kb1 {[%clk 0:03:02]}  Be6 {[%clk 0:02:50]} 13. Nxe6 {[%clk 0:02:44]}  fxe6 {[%clk 0:02:51]} 14. Bc4 {[%clk 0:02:44]}  Rxf3 {[%clk 0:02:28]} 15. Bxe6+ {[%clk 0:02:42]}  Kh7 {[%clk 0:02:28]} 16. Rhg1 {[%clk 0:02:27]}  Raf8 {[%clk 0:01:54]} 17. Bg4 {[%clk 0:02:22]}  Ne5 {[%clk 0:01:29]} 18. Bxh5 {[%clk 0:02:14]}  gxh5 {[%clk 0:01:30]} 19. Rxg7+ {[%clk 0:02:01]}  Kxg7 {[%clk 0:01:27]} 20. Bh6+ {[%clk 0:02:02]}  Kh7 {[%clk 0:01:24]} 21. Bxf8 {[%clk 0:01:59]}  Rxf8 {[%clk 0:01:24]} 22. Qg5 {[%clk 0:01:51]}  Qc5 {[%clk 0:01:02]} 23. Rg1 {[%clk 0:01:40]}  Ng4 {[%clk 0:00:49]} 24. Qxe7+ {[%clk 0:01:34]}  Kg8 {[%clk 0:00:48]} 25. Rd1 {[%clk 0:01:18]}  Rf6 {[%clk 0:00:32]} 26. a3 {[%clk 0:01:14]}  b5 {[%clk 0:00:30]} 27. Nd5 {[%clk 0:01:12]}  Rg6 {[%clk 0:00:27]} 28. Rf1 {[%clk 0:01:05]}  Qd4 {[%clk 0:00:20]} 29. Qf7+ {[%clk 0:01:04]}  Kh8 {[%clk 0:00:17]} 30. Qxg6 {[%clk 0:01:01]}  Qg7 {[%clk 0:00:17]} 31. Qxh5+ {[%clk 0:00:57]}  Nh6 {[%clk 0:00:15]} 32. Qe8+ {[%clk 0:00:52]}  Kh7 {[%clk 0:00:14]} 33. Qe7 {[%clk 0:00:53]}  Qxe7 {[%clk 0:00:04]} 34. Nxe7 {[%clk 0:00:54]} 1-0


[Site "https://www.chess.com"]